[Event "36th European Club Cup 2021"]
[Site "Struga"]
[Date "2021.09.19"]
[Round "2.47"]
[White "Hagen, Anders Gjerdrum"]
[Black "Gotovusa, Goran"]
[Result "0-1"]
[ECO "D36"]
[WhiteElo "2179"]
[BlackElo "2161"]
[Annotator "NA"]
[PlyCount "56"]
[EventDate "2021.09.18"]
[EventType "team-tourn"]
[EventCountry "MKD"]
[SourceTitle "playchess.com"]
[Source "ChessBase"]
[SourceQuality "1"]
[TimeControl "40/5400+30:1800+30"]

1. d4 {[%emt 0:00:10]} Nf6 {[%emt 0:00:09]} 2. c4 {[%emt 0:00:32]} e6 {[%emt 0:
00:08]} 3. Nc3 {[%emt 0:00:29]} d5 {[%emt 0:00:07]} 4. cxd5 {[%emt 0:00:49]}
exd5 {[%emt 0:00:16]} 5. Bg5 {[%emt 0:00:51]} c6 {[%emt 0:01:19]} 6. e3 {
[%emt 0:01:25]} h6 {[%emt 0:02:14]} 7. Bh4 {[%emt 0:04:42]} Be7 {[%emt 0:04:10]
} 8. Bd3 {[%emt 0:03:22]} O-O {[%emt 0:00:21]} 9. Qc2 {[%emt 0:06:19]} Re8 {
[%emt 0:12:45]} 10. Nf3 {[%emt 0:03:36]} Nbd7 {[%emt 0:00:58]} 11. O-O {
[%emt 0:07:39]} Ne4 {[%emt 0:07:05]} 12. Bxe7 {[%emt 0:02:09]} Qxe7 {[%emt 0:
00:04]} 13. Bxe4 {[%emt 0:01:47]} dxe4 {[%emt 0:00:11]} 14. Nd2 {[%emt 0:00:43]
} Nf6 {[%emt 0:06:17]} 15. Rab1 {[%emt 0:14:45]} Nd5 {[%emt 0:21:25]} 16. Nxd5
{[%emt 0:19:57]} cxd5 {[%emt 0:00:23]} 17. Qb3 {[%emt 0:00:36]} Be6 {[%emt 0:
23:00]} 18. Rbc1 {[%emt 0:03:46]} Rec8 {[%emt 0:02:45]} 19. Nb1 {[%emt 0:06:17]
} Qg5 {[%emt 0:05:15]} 20. Kh1 {[%emt 0:02:53]} Bg4 {[%emt 0:04:10]} 21. Rxc8+
{[%emt 0:07:31]} Rxc8 {[%emt 0:00:34]} 22. Nc3 {[%emt 0:07:22]} b6 {[%emt 0:01:
53]} 23. Qa4 {[%emt 0:01:33]} Rc7 {[%emt 0:01:14]} 24. Qe8+ {[%emt 0:01:41]}
Kh7 {[%emt 0:00:14]} 25. Nb5 {[%emt 0:01:13]} Bf3 {[%emt 0:00:40]} 26. gxf3 {
[%emt 0:00:36]} exf3 {[%emt 0:00:10]} 27. Rg1 {[%emt 0:00:30]} Qxg1+ {[%emt 0:
00:55]} 28. Kxg1 {[%emt 0:00:05]} Rc1# {[%emt 0:00:02]} 0-1

[Event "36th European Club Cup 2021"]
[Site "Struga"]
[Date "2021.09.19"]
[Round "2.48"]
[White "Gjorgjieski, Dejan"]
[Black "Haarr, Jon Kristian"]
[Result "0-1"]
[ECO "A06"]
[WhiteElo "2125"]
[BlackElo "2162"]
[Annotator "NA"]
[PlyCount "56"]
[EventDate "2021.09.18"]
[EventType "team-tourn"]
[EventCountry "MKD"]
[SourceTitle "playchess.com"]
[Source "ChessBase"]
[SourceQuality "1"]
[TimeControl "40/5400+30:1800+30"]

1. Nf3 {[%emt 0:00:24]} c5 {[%emt 0:01:00]} 2. b3 {[%emt 0:07:08]} d5 {[%emt 0:
02:48]} 3. e3 {[%emt 0:00:20]} Nc6 {[%emt 0:01:48]} 4. Bb2 {[%emt 0:00:09]} Nf6
{[%emt 0:04:01]} 5. d4 {[%emt 0:10:11]} Bg4 {[%emt 0:04:59]} 6. Be2 {[%emt 0:
02:31]} e6 {[%emt 0:12:19]} 7. O-O {[%emt 0:07:04]} Be7 {[%emt 0:01:13]} 8.
Nbd2 {[%emt 0:02:24]} O-O {[%emt 0:00:41]} 9. Ne5 {[%emt 0:02:38]} Bxe2 {
[%emt 0:02:27]} 10. Qxe2 {[%emt 1:02:41]} Rc8 {[%emt 0:04:23]} 11. c4 {[%emt 0:
00:00]} cxd4 {[%emt 0:09:13]} 12. Nxc6 {[%emt 0:00:00]} Rxc6 {[%emt 0:01:54]}
13. Bxd4 {[%emt 0:00:00]} Qa5 {[%emt 0:01:58]} 14. a3 {[%emt 0:00:00]} Qc7 {
[%emt 0:08:31]} 15. cxd5 {[%emt 0:00:00]} Nxd5 {[%emt 0:00:34]} 16. Nc4 {
[%emt 0:00:00]} Bf6 {[%emt 0:03:18]} 17. Bxf6 {[%emt 0:00:00]} Nxf6 {[%emt 0:
00:08]} 18. a4 {[%emt 0:00:00]} Ne4 {[%emt 0:02:48]} 19. Qb2 {[%emt 0:00:30]}
Rc8 {[%emt 0:04:38]} 20. Rad1 {[%emt 0:00:40]} Rc5 {[%emt 0:04:22]} 21. Rd4 {
[%emt 0:00:39]} Nf6 {[%emt 0:01:55]} 22. Rfd1 {[%emt 0:00:17]} h6 {[%emt 0:00:
36]} 23. h3 {[%emt 0:01:20]} Rd5 {[%emt 0:06:13]} 24. Rxd5 {[%emt 0:01:42]}
exd5 {[%emt 0:01:12]} 25. Ne5 {[%emt 0:00:24]} Ne4 {[%emt 0:01:43]} 26. Rxd5 {
[%emt 0:01:15]} Nc3 {[%emt 0:01:44]} 27. Rd7 {[%emt 0:01:11]} Qxe5 {[%emt 0:00:
19]} 28. Rxb7 {[%emt 0:00:09]} Ne2+ {[%emt 0:00:19]} 0-1

[Event "36th European Club Cup 2021"]
[Site "Struga"]
[Date "2021.09.19"]
[Round "2.50"]
[White "Asadli, Vugar"]
[Black "Korsunsky, Yuri"]
[Result "1-0"]
[ECO "A12"]
[WhiteElo "2578"]
[BlackElo "2395"]
[Annotator "ChessBase"]
[PlyCount "135"]
[EventDate "2021.09.18"]
[EventType "team-tourn"]
[EventCountry "MKD"]
[SourceTitle "playchess.com"]
[Source "ChessBase"]
[SourceQuality "1"]
[TimeControl "40/5400+30:1800+30"]

1. c4 {[%emt 0:00:06]} Nf6 {[%emt 0:00:41]} 2. g3 {[%emt 0:00:36]} c6 {[%emt 0:
01:07]} 3. Nf3 {[%emt 0:00:41]} d5 {[%emt 0:00:08]} 4. b3 {[%emt 0:01:01]} Bf5
{[%emt 0:01:36]} 5. Bb2 {[%emt 0:00:59]} e6 {[%emt 0:00:15]} 6. Bg2 {[%emt 0:
00:18]} Be7 {[%emt 0:02:55]} 7. d3 {[%emt 0:00:47]} h6 {[%emt 0:00:50]} 8. O-O
{[%emt 0:00:19]} O-O {[%emt 0:00:20]} 9. Nbd2 {[%emt 0:00:06]} a5 {[%emt 0:03:
35]} 10. a3 {[%emt 0:00:33]} Nbd7 {[%emt 0:01:55]} 11. Qc2 {[%emt 0:01:58]} Bh7
{[%emt 0:00:24]} 12. Rfc1 {[%emt 0:07:12]} Re8 {[%emt 0:04:36]} 13. Ne5 {
[%emt 0:07:52]} Nxe5 {[%emt 0:10:37]} 14. Bxe5 {[%emt 0:00:06]} Ng4 {[%emt 0:
02:33]} 15. Bb2 {[%emt 0:01:57]} Bc5 {[%emt 0:03:26]} 16. e3 {[%emt 0:06:00]}
Bd6 {[%emt 0:14:09]} 17. Nf3 {[%emt 0:13:32]} e5 {[%emt 0:02:33]} 18. Qe2 {
[%emt 0:05:09]} Nf6 {[%emt 0:04:57]} 19. cxd5 {[%emt 0:04:08]} cxd5 {[%emt 0:
02:17]} 20. Bh3 {[%emt 0:01:49]} Qb6 {[%emt 0:20:26]} 21. Qd1 {[%emt 0:02:37]}
d4 {[%emt 0:04:05]} 22. e4 {[%emt 0:02:28]} a4 {[%emt 0:00:28]} 23. Nd2 {
[%emt 0:01:31]} Qa6 {[%emt 0:01:08]} 24. bxa4 {[%emt 0:02:04]} Qxa4 {[%emt 0:
01:18]} 25. Nc4 {[%emt 0:00:13]} Qxd1+ {[%emt 0:06:36]} 26. Rxd1 {[%emt 0:00:
11]} Bc7 {[%emt 0:00:01]} 27. a4 {[%emt 0:01:10]} g5 {[%emt 0:01:35]} 28. Rdb1
{[%emt 0:02:40]} g4 {[%emt 0:02:04]} 29. Bf1 {[%emt 0:00:11]} b6 {[%emt 0:00:
44]} 30. Bc1 {[%emt 0:00:49]} Re6 {[%emt 0:00:01]} 31. h3 {[%emt 0:00:39]} h5 {
[%emt 0:00:24]} 32. hxg4 {[%emt 0:00:15]} hxg4 {[%emt 0:00:06]} 33. Be2 {
[%emt 0:00:03]} Kg7 {[%emt 0:02:05]} 34. Bg5 {[%emt 0:01:12]} Nxe4 {[%emt 0:00:
12]} 35. dxe4 {[%emt 0:01:28]} Bxe4 {[%emt 0:00:01]} 36. Re1 {[%emt 0:01:09]}
Bd5 {[%emt 0:02:53]} 37. Nd2 {[%emt 0:07:15]} f6 {[%emt 0:01:49]} 38. Bxg4 {
[%emt 0:05:45]} fxg5 {[%emt 0:00:04]} 39. Bxe6 {[%emt 0:00:04]} Bxe6 {[%emt 0:
00:01]} 40. Rac1 {[%emt 0:00:00]} Ra7 {[%emt 0:00:00]} 41. Nf3 {[%emt 0:02:00]}
Kf6 {[%emt 0:06:24]} 42. Rc6 {[%emt 0:02:22]} d3 {[%emt 0:00:06]} 43. Nd4 {
[%emt 0:07:38]} exd4 {[%emt 0:02:47]} 44. Rcxe6+ {[%emt 0:00:08]} Kf5 {[%emt 0:
00:27]} 45. Re7 {[%emt 0:00:04]} Bb8 {[%emt 0:03:49]} 46. Rxa7 {[%emt 0:05:44]}
Bxa7 {[%emt 0:00:05]} 47. f3 {[%emt 0:01:11]} g4 {[%emt 0:07:21]} 48. fxg4+ {
[%emt 0:02:02]} Kxg4 {[%emt 0:00:50]} 49. Kg2 {[%emt 0:00:42]} d2 {[%emt 0:05:
18]} 50. Rh1 {[%emt 0:01:28]} d3 {[%emt 0:00:45]} 51. Rd1 {[%emt 0:05:27]} Bb8
{[%emt 0:00:19]} 52. Rxd2 {[%emt 0:00:07]} Bxg3 {[%emt 0:00:01]} 53. Rxd3 {
[%emt 0:00:07]} Be5 {[%emt 0:00:36]} 54. Rb3 {[%emt 0:01:26]} Bc7 {[%emt 0:01:
05]} 55. Rc3 {[%emt 0:00:04]} Bd8 {[%emt 0:00:17]} 56. Rc8 {[%emt 0:00:10]} Be7
{[%emt 0:01:36]} 57. Rc6 {[%emt 0:00:17]} Bd8 {[%emt 0:00:08]} 58. Rd6 {
[%emt 0:00:07]} Bc7 {[%emt 0:00:06]} 59. Rf6 {[%emt 0:00:02]} Bd8 {[%emt 0:00:
44]} 60. Rf7 {[%emt 0:00:57]} Bg5 {[%emt 0:00:30]} 61. Kf1 {[%emt 0:00:33]} Kh5
{[%emt 0:03:23]} 62. Ke2 {[%emt 0:00:27]} Kg6 {[%emt 0:00:23]} 63. Rb7 {
[%emt 0:00:25]} Bd8 {[%emt 0:00:06]} 64. Rd7 {[%emt 0:00:04]} Bh4 {[%emt 0:01:
03]} 65. Rd6+ {[%emt 0:00:21]} Kf7 {[%emt 0:00:05]} 66. Rxb6 {[%emt 0:00:44]}
Ke7 {[%emt 0:00:08]} 67. a5 {[%emt 0:00:17]} Kd7 {[%emt 0:00:01]} 68. a6 {
[%emt 0:00:07]} 1-0

[Event "36th European Club Cup 2021"]
[Site "Struga"]
[Date "2021.09.19"]
[Round "2.51"]
[White "Gluhovsky, Mark"]
[Black "Suleymanli, Aydin"]
[Result "0-1"]
[ECO "B10"]
[WhiteElo "2275"]
[BlackElo "2536"]
[Annotator "ChessBase"]
[PlyCount "76"]
[EventDate "2021.09.18"]
[EventType "team-tourn"]
[EventCountry "MKD"]
[SourceTitle "playchess.com"]
[Source "ChessBase"]
[SourceQuality "1"]
[TimeControl "40/5400+30:1800+30"]

1. e4 {[%emt 0:00:02]} c6 {[%emt 0:00:06]} 2. Nf3 {[%emt 0:00:10]} d5 {[%emt 0:
00:05]} 3. d3 {[%emt 0:00:05]} dxe4 {[%emt 0:00:15]} 4. dxe4 {[%emt 0:00:07]}
Qxd1+ {[%emt 0:00:05]} 5. Kxd1 {[%emt 0:00:09]} Nd7 {[%emt 0:00:07]} 6. Ne1 {
[%emt 0:03:12]} g6 {[%emt 0:00:06]} 7. Nd3 {[%emt 0:01:14]} Bg7 {[%emt 0:00:42]
} 8. Nd2 {[%emt 0:01:32]} b6 {[%emt 0:05:59]} 9. c3 {[%emt 1:28:29]} a5 {
[%emt 0:02:11]} 10. a4 {[%emt 0:00:00]} Ba6 {[%emt 0:00:29]} 11. Kc2 {[%emt 0:
00:00]} e5 {[%emt 0:08:24]} 12. b3 {[%emt 0:00:00]} Kd8 {[%emt 0:05:20]} 13.
Nb2 {[%emt 0:00:00]} Bxf1 {[%emt 0:05:31]} 14. Rxf1 {[%emt 0:00:00]} Kc7 {
[%emt 0:00:23]} 15. Nd3 {[%emt 0:00:00]} Bh6 {[%emt 0:05:39]} 16. f4 {[%emt 0:
00:00]} exf4 {[%emt 0:02:30]} 17. Nc4 {[%emt 0:00:00]} Re8 {[%emt 0:02:28]} 18.
Bxf4+ {[%emt 0:00:00]} Bxf4 {[%emt 0:00:05]} 19. Rxf4 {[%emt 0:00:00]} f6 {
[%emt 0:00:15]} 20. Re1 {[%emt 0:00:00]} Nh6 {[%emt 0:01:50]} 21. b4 {[%emt 0:
00:00]} axb4 {[%emt 0:01:33]} 22. cxb4 {[%emt 0:00:00]} Re6 {[%emt 0:08:49]}
23. a5 {[%emt 0:00:00]} bxa5 {[%emt 0:01:03]} 24. bxa5 {[%emt 0:00:00]} Nf7 {
[%emt 0:00:59]} 25. Kc3 {[%emt 0:00:00]} Rhe8 {[%emt 0:02:46]} 26. a6 {[%emt 0:
00:00]} Ra8 {[%emt 0:02:50]} 27. Ra1 {[%emt 0:00:00]} g5 {[%emt 0:01:12]} 28.
Rf2 {[%emt 0:00:00]} Rxe4 {[%emt 0:00:18]} 29. Rb2 {[%emt 0:00:00]} Ra7 {
[%emt 0:01:19]} 30. Nd2 {[%emt 0:04:47]} Re8 {[%emt 0:02:14]} 31. Nb3 {[%emt 0:
01:23]} Nd6 {[%emt 0:00:38]} 32. Nbc5 {[%emt 0:01:16]} Nxc5 {[%emt 0:00:12]}
33. Nxc5 {[%emt 0:00:06]} Re5 {[%emt 0:00:08]} 34. Nd3 {[%emt 0:01:24]} Rd5 {
[%emt 0:00:59]} 35. Nb4 {[%emt 0:01:23]} Nb5+ {[%emt 0:05:49]} 36. Kc4 {
[%emt 0:00:40]} Re5 {[%emt 0:03:08]} 37. Nd3 {[%emt 0:00:57]} Re4+ {[%emt 0:00:
07]} 38. Kc5 {[%emt 0:00:50]} Nd4 {[%emt 0:01:00]} 0-1

[Event "36th European Club Cup 2021"]
[Site "Struga"]
[Date "2021.09.19"]
[Round "2.52"]
[White "Sadikhov, Ulvi"]
[Black "Slavin, Gennadie"]
[Result "1-0"]
[ECO "A24"]
[WhiteElo "2509"]
[BlackElo "2264"]
[Annotator "ChessBase"]
[PlyCount "97"]
[EventDate "2021.09.18"]
[EventType "team-tourn"]
[EventCountry "MKD"]
[SourceTitle "playchess.com"]
[Source "ChessBase"]
[SourceQuality "1"]
[TimeControl "40/5400+30:1800+30"]

1. c4 {[%emt 0:00:07]} Nf6 {[%emt 0:01:05]} 2. Nc3 {[%emt 0:00:06]} d6 {
[%emt 0:00:18]} 3. g3 {[%emt 0:00:08]} g6 {[%emt 0:00:51]} 4. Bg2 {[%emt 0:00:
05]} Bg7 {[%emt 0:00:13]} 5. d3 {[%emt 0:00:09]} O-O {[%emt 0:00:43]} 6. e4 {
[%emt 0:00:11]} e5 {[%emt 0:02:21]} 7. Nge2 {[%emt 0:01:43]} c6 {[%emt 0:03:37]
} 8. O-O {[%emt 0:00:13]} Be6 {[%emt 0:08:18]} 9. h3 {[%emt 0:00:09]} Ne8 {
[%emt 0:01:28]} 10. b3 {[%emt 0:03:28]} f5 {[%emt 0:23:56]} 11. d4 {[%emt 0:06:
50]} Nf6 {[%emt 0:04:31]} 12. exf5 {[%emt 0:19:15]} Bxf5 {[%emt 0:05:04]} 13.
g4 {[%emt 0:04:13]} Bc8 {[%emt 0:04:49]} 14. dxe5 {[%emt 0:07:06]} dxe5 {
[%emt 0:01:48]} 15. Ba3 {[%emt 0:00:34]} Re8 {[%emt 0:00:29]} 16. Ng3 {[%emt 0:
00:53]} Qxd1 {[%emt 0:10:48]} 17. Raxd1 {[%emt 0:00:25]} Bf8 {[%emt 0:00:45]}
18. Bb2 {[%emt 0:01:34]} Nbd7 {[%emt 0:06:40]} 19. Nce4 {[%emt 0:02:36]} Nxe4 {
[%emt 0:05:00]} 20. Nxe4 {[%emt 0:00:13]} Be7 {[%emt 0:00:33]} 21. Nd6 {
[%emt 0:04:48]} Bxd6 {[%emt 0:00:52]} 22. Rxd6 {[%emt 0:00:08]} Kf7 {[%emt 0:
07:00]} 23. Rfd1 {[%emt 0:01:01]} Nf8 {[%emt 0:01:05]} 24. Re1 {[%emt 0:03:35]}
Nd7 {[%emt 0:02:18]} 25. g5 {[%emt 0:06:04]} a5 {[%emt 0:02:16]} 26. h4 {
[%emt 0:01:58]} a4 {[%emt 0:00:34]} 27. Bh3 {[%emt 0:04:16]} Nb6 {[%emt 0:02:
25]} 28. Bxc8 {[%emt 0:02:15]} Nxc8 {[%emt 0:00:40]} 29. Rf6+ {[%emt 0:01:40]}
Kg8 {[%emt 0:00:08]} 30. Rxe5 {[%emt 0:00:36]} Rxe5 {[%emt 0:00:33]} 31. Bxe5 {
[%emt 0:00:04]} axb3 {[%emt 0:00:30]} 32. axb3 {[%emt 0:00:04]} Ra3 {[%emt 0:
00:54]} 33. Rf3 {[%emt 0:00:51]} Ne7 {[%emt 0:00:46]} 34. Bf6 {[%emt 0:30:12]}
Nf5 {[%emt 0:00:56]} 35. h5 {[%emt 0:00:00]} Kf7 {[%emt 0:00:20]} 36. h6 {
[%emt 0:00:00]} Ke6 {[%emt 0:00:29]} 37. Rd3 {[%emt 0:00:00]} Nxh6 {[%emt 0:01:
26]} 38. Re3+ {[%emt 0:00:00]} Kf5 {[%emt 0:00:15]} 39. Re5+ {[%emt 0:00:00]}
Kf4 {[%emt 0:00:29]} 40. gxh6 {[%emt 0:00:00]} Rxb3 {[%emt 0:00:00]} 41. Kg2 {
[%emt 0:00:00]} b5 {[%emt 0:07:35]} 42. cxb5 {[%emt 0:00:00]} Rxb5 {[%emt 0:01:
18]} 43. Re7 {[%emt 0:00:00]} Kf5 {[%emt 0:00:38]} 44. Bd4 {[%emt 0:00:00]} Rd5
{[%emt 0:03:18]} 45. Be3 {[%emt 0:00:00]} g5 {[%emt 0:00:07]} 46. Rxh7 {
[%emt 0:00:00]} Kg6 {[%emt 0:00:07]} 47. Rc7 {[%emt 0:00:00]} Kxh6 {[%emt 0:05:
36]} 48. Rxc6+ {[%emt 0:00:00]} Kh5 {[%emt 0:00:15]} 49. Rc5 {[%emt 0:00:00]}
1-0

[Event "36th European Club Cup 2021"]
[Site "Struga"]
[Date "2021.09.19"]
[Round "2.53"]
[White "Kurochkin, Victor"]
[Black "Ahmadzada, Ahmad"]
[Result "0-1"]
[ECO "B40"]
[WhiteElo "2407"]
[BlackElo "2462"]
[Annotator "ChessBase"]
[PlyCount "98"]
[EventDate "2021.09.18"]
[EventType "team-tourn"]
[EventCountry "MKD"]
[SourceTitle "playchess.com"]
[Source "ChessBase"]
[SourceQuality "1"]
[TimeControl "40/5400+30:1800+30"]

1. e4 {[%emt 0:02:48]} c5 {[%emt 0:00:09]} 2. Nf3 {[%emt 0:00:04]} e6 {[%emt 0:
00:08]} 3. d4 {[%emt 0:01:20]} cxd4 {[%emt 0:00:09]} 4. Nxd4 {[%emt 0:00:03]}
Nf6 {[%emt 0:00:12]} 5. Bd3 {[%emt 0:00:11]} Nc6 {[%emt 0:00:12]} 6. Nxc6 {
[%emt 0:00:19]} dxc6 {[%emt 0:00:09]} 7. O-O {[%emt 0:00:21]} e5 {[%emt 0:00:
18]} 8. Qf3 {[%emt 0:01:21]} Bc5 {[%emt 0:06:35]} 9. Nd2 {[%emt 0:07:34]} Qe7 {
[%emt 0:11:14]} 10. Nb3 {[%emt 0:05:03]} Bb6 {[%emt 0:03:26]} 11. Be3 {[%emt 0:
01:19]} O-O {[%emt 0:02:03]} 12. a4 {[%emt 0:04:07]} Bxe3 {[%emt 0:08:26]} 13.
Qxe3 {[%emt 0:03:02]} Be6 {[%emt 0:00:20]} 14. Qc5 {[%emt 0:02:42]} Qc7 {
[%emt 0:02:23]} 15. Nd2 {[%emt 0:01:45]} Rad8 {[%emt 0:06:54]} 16. Nf3 {
[%emt 0:07:24]} Nd7 {[%emt 0:01:13]} 17. Qc3 {[%emt 0:00:06]} f6 {[%emt 0:04:
28]} 18. Bc4 {[%emt 0:00:31]} Nc5 {[%emt 0:03:08]} 19. Rfd1 {[%emt 1:00:00]}
Qf7 {[%emt 0:02:01]} 20. Bxe6 {[%emt 0:00:00]} Nxe6 {[%emt 0:00:17]} 21. Qc4 {
[%emt 0:00:00]} g5 {[%emt 0:05:06]} 22. Kf1 {[%emt 0:00:00]} h5 {[%emt 0:01:54]
} 23. c3 {[%emt 0:00:00]} Rd7 {[%emt 0:04:19]} 24. g3 {[%emt 0:00:00]} Rfd8 {
[%emt 0:00:50]} 25. Ke1 {[%emt 0:00:00]} g4 {[%emt 0:08:02]} 26. Rxd7 {[%emt 0:
00:00]} Rxd7 {[%emt 0:04:50]} 27. Nd2 {[%emt 0:00:00]} Rd6 {[%emt 0:03:28]} 28.
Nf1 {[%emt 0:00:00]} Ng5 {[%emt 0:04:29]} 29. Qxf7+ {[%emt 0:00:00]} Kxf7 {
[%emt 0:00:07]} 30. Nd2 {[%emt 0:00:00]} Ke6 {[%emt 0:00:33]} 31. Ke2 {[%emt 0:
00:00]} f5 {[%emt 0:00:38]} 32. exf5+ {[%emt 0:00:00]} Kxf5 {[%emt 0:00:11]}
33. Nc4 {[%emt 0:00:00]} Rd7 {[%emt 0:01:57]} 34. Rd1 {[%emt 0:00:00]} Rxd1 {
[%emt 0:00:20]} 35. Kxd1 {[%emt 0:00:00]} b6 {[%emt 0:01:48]} 36. Ke2 {[%emt 0:
00:00]} Nf3 {[%emt 0:01:07]} 37. b4 {[%emt 0:01:10]} Ke6 {[%emt 0:01:56]} 38.
Ke3 {[%emt 0:03:05]} Kd5 {[%emt 0:01:44]} 39. Nb2 {[%emt 0:01:56]} b5 {[%emt 0:
02:15]} 40. axb5 {[%emt 0:00:00]} cxb5 {[%emt 0:00:00]} 41. Kd3 {[%emt 0:01:06]
} Nxh2 {[%emt 0:02:07]} 42. c4+ {[%emt 0:04:34]} bxc4+ {[%emt 0:00:13]} 43.
Nxc4 {[%emt 0:00:06]} e4+ {[%emt 0:00:54]} 44. Kc3 {[%emt 0:00:52]} Nf1 {
[%emt 0:00:05]} 45. Nb2 {[%emt 0:02:40]} e3 {[%emt 0:01:24]} 46. Kd3 {[%emt 0:
05:40]} exf2 {[%emt 0:01:11]} 47. Ke2 {[%emt 0:00:04]} Nxg3+ {[%emt 0:00:19]}
48. Kxf2 {[%emt 0:00:02]} h4 {[%emt 0:00:54]} 49. Nd1 {[%emt 0:00:19]} Ne4+ {
[%emt 0:00:32]} 0-1

[Event "36th European Club Cup 2021"]
[Site "Struga"]
[Date "2021.09.19"]
[Round "2.54"]
[White "Ibrahimli, Murad"]
[Black "Pleshkov, Mikhail"]
[Result "1-0"]
[ECO "A61"]
[WhiteElo "2436"]
[BlackElo "1984"]
[Annotator "NA"]
[PlyCount "76"]
[EventDate "2021.09.18"]
[EventType "team-tourn"]
[EventCountry "MKD"]
[SourceTitle "playchess.com"]
[Source "ChessBase"]
[SourceQuality "1"]
[TimeControl "40/5400+30:1800+30"]

1. d4 {[%emt 0:00:03]} Nf6 {[%emt 0:00:58]} 2. c4 {[%emt 0:00:14]} e6 {[%emt 0:
00:07]} 3. Nc3 {[%emt 0:00:25]} c5 {[%emt 0:00:47]} 4. d5 {[%emt 0:00:29]} exd5
{[%emt 0:00:17]} 5. cxd5 {[%emt 0:00:05]} d6 {[%emt 0:01:18]} 6. Nf3 {[%emt 0:
00:41]} g6 {[%emt 0:00:58]} 7. Bg5 {[%emt 0:02:19]} Bg7 {[%emt 0:02:42]} 8. e3
{[%emt 0:00:06]} O-O {[%emt 0:01:21]} 9. Nd2 {[%emt 0:00:04]} a6 {[%emt 0:01:
47]} 10. a4 {[%emt 0:00:05]} Qc7 {[%emt 0:04:06]} 11. Nc4 {[%emt 0:00:38]} Re8
{[%emt 0:02:43]} 12. Qf3 {[%emt 0:05:25]} Nfd7 {[%emt 0:18:10]} 13. Ne4 {
[%emt 0:03:13]} Rxe4 {[%emt 0:13:28]} 14. Qxe4 {[%emt 0:00:19]} Ne5 {[%emt 0:
00:19]} 15. Qc2 {[%emt 0:02:47]} Nbd7 {[%emt 0:07:06]} 16. Nd2 {[%emt 0:05:16]}
Nf6 {[%emt 0:04:19]} 17. Bxf6 {[%emt 0:04:13]} Bxf6 {[%emt 0:01:07]} 18. Be2 {
[%emt 0:00:07]} Bf5 {[%emt 0:04:35]} 19. e4 {[%emt 0:00:13]} Bd7 {[%emt 0:00:
14]} 20. f4 {[%emt 0:02:19]} Ng4 {[%emt 0:00:10]} 21. Bxg4 {[%emt 0:00:07]}
Bxg4 {[%emt 0:00:02]} 22. O-O {[%emt 0:00:10]} Re8 {[%emt 0:04:40]} 23. Rae1 {
[%emt 0:04:17]} b5 {[%emt 0:02:39]} 24. axb5 {[%emt 0:01:32]} axb5 {[%emt 0:00:
02]} 25. h3 {[%emt 0:02:26]} Bd7 {[%emt 0:02:04]} 26. e5 {[%emt 0:00:06]} dxe5
{[%emt 0:03:14]} 27. Ne4 {[%emt 0:00:15]} Bg7 {[%emt 0:03:16]} 28. Qxc5 {
[%emt 0:00:37]} Qb8 {[%emt 0:01:43]} 29. fxe5 {[%emt 0:00:18]} Rxe5 {[%emt 0:
01:22]} 30. Qf2 {[%emt 0:10:01]} Bf5 {[%emt 0:04:42]} 31. d6 {[%emt 0:03:00]}
Qf8 {[%emt 0:10:13]} 32. Qb6 {[%emt 0:04:39]} Rd5 {[%emt 0:01:07]} 33. Qc6 {
[%emt 0:05:40]} Bd4+ {[%emt 0:00:57]} 34. Kh1 {[%emt 0:00:24]} Bxe4 {[%emt 0:
00:09]} 35. Rxe4 {[%emt 0:00:10]} Rxd6 {[%emt 0:00:47]} 36. Qxb5 {[%emt 0:00:
05]} Rd8 {[%emt 0:00:56]} 37. Rfe1 {[%emt 0:00:16]} Kg7 {[%emt 0:00:50]} 38.
Rxd4 {[%emt 0:00:06]} Kg8 {[%emt 0:04:15]} 1-0

[Event "36th European Club Cup 2021"]
[Site "Struga"]
[Date "2021.09.19"]
[Round "2.55"]
[White "Smith, Axel"]
[Black "Cornette, Matthieu"]
[Result "0-1"]
[ECO "E46"]
[WhiteElo "2451"]
[BlackElo "2578"]
[Annotator "ChessBase"]
[PlyCount "108"]
[EventDate "2021.09.18"]
[EventType "team-tourn"]
[EventCountry "MKD"]
[SourceTitle "playchess.com"]
[Source "ChessBase"]
[SourceQuality "1"]
[TimeControl "40/5400+30:1800+30"]

1. d4 {[%emt 0:00:02]} Nf6 {[%emt 0:00:09]} 2. c4 {[%emt 0:00:06]} e6 {[%emt 0:
00:07]} 3. Nc3 {[%emt 0:00:15]} Bb4 {[%emt 0:00:06]} 4. e3 {[%emt 0:00:30]} O-O
{[%emt 0:00:42]} 5. Nge2 {[%emt 0:00:29]} Re8 {[%emt 0:02:03]} 6. a3 {[%emt 0:
00:26]} Bf8 {[%emt 0:00:06]} 7. Ng3 {[%emt 0:03:57]} d5 {[%emt 0:03:21]} 8. Be2
{[%emt 0:02:17]} dxc4 {[%emt 0:07:59]} 9. O-O {[%emt 0:00:50]} Nc6 {[%emt 0:07:
39]} 10. Bxc4 {[%emt 0:00:45]} e5 {[%emt 0:00:09]} 11. d5 {[%emt 0:07:21]} Ne7
{[%emt 0:00:55]} 12. b4 {[%emt 0:05:55]} Nf5 {[%emt 0:02:53]} 13. Nge4 {
[%emt 0:15:26]} Nxe4 {[%emt 0:01:10]} 14. Nxe4 {[%emt 0:01:43]} Nd6 {[%emt 0:
00:52]} 15. Nxd6 {[%emt 0:00:36]} Bxd6 {[%emt 0:00:21]} 16. e4 {[%emt 0:01:37]}
f5 {[%emt 0:05:39]} 17. exf5 {[%emt 0:14:21]} Bxf5 {[%emt 0:04:40]} 18. Qh5 {
[%emt 0:00:11]} Qd7 {[%emt 0:10:48]} 19. Be3 {[%emt 0:02:35]} Rf8 {[%emt 0:01:
56]} 20. Qe2 {[%emt 0:06:00]} Rf6 {[%emt 0:06:49]} 21. Bc5 {[%emt 0:01:42]}
Raf8 {[%emt 0:04:24]} 22. Qe3 {[%emt 0:06:11]} Qf7 {[%emt 0:07:05]} 23. f3 {
[%emt 0:04:27]} Qg6 {[%emt 0:06:28]} 24. Rf2 {[%emt 0:03:51]} b6 {[%emt 0:01:
47]} 25. Bxd6 {[%emt 0:00:03]} cxd6 {[%emt 0:00:03]} 26. Rc1 {[%emt 0:01:26]}
h5 {[%emt 0:04:10]} 27. Be2 {[%emt 0:11:21]} Be4 {[%emt 0:03:57]} 28. Rd1 {
[%emt 0:02:28]} h4 {[%emt 0:00:38]} 29. Rff1 {[%emt 0:02:35]} Bf5 {[%emt 0:02:
31]} 30. Kh1 {[%emt 0:03:59]} Qf7 {[%emt 0:04:09]} 31. Rc1 {[%emt 0:00:38]} h3
{[%emt 0:03:10]} 32. Rg1 {[%emt 0:00:56]} hxg2+ {[%emt 0:02:09]} 33. Rxg2 {
[%emt 0:00:01]} Rg6 {[%emt 0:00:24]} 34. Rg5 {[%emt 0:01:39]} Rxg5 {[%emt 0:01:
08]} 35. Qxg5 {[%emt 0:00:02]} Bd3 {[%emt 0:00:52]} 36. Qe3 {[%emt 0:01:15]}
Bxe2 {[%emt 0:00:21]} 37. Qxe2 {[%emt 0:00:01]} Qxd5 {[%emt 0:01:41]} 38. Kg2 {
[%emt 0:00:40]} Rf4 {[%emt 0:01:41]} 39. Rd1 {[%emt 0:00:35]} Qe6 {[%emt 0:00:
55]} 40. Qd3 {[%emt 0:00:00]} Rd4 {[%emt 0:00:00]} 41. Qc2 {[%emt 0:01:11]} Rh4
{[%emt 0:07:22]} 42. Kg1 {[%emt 0:04:48]} d5 {[%emt 0:05:33]} 43. Qd3 {[%emt 0:
16:36]} d4 {[%emt 0:09:49]} 44. Rd2 {[%emt 0:06:04]} Rf4 {[%emt 0:00:43]} 45.
Re2 {[%emt 0:01:13]} Qh3 {[%emt 0:05:10]} 46. Qc4+ {[%emt 0:01:45]} Kh7 {
[%emt 0:00:17]} 47. Qd3+ {[%emt 0:00:22]} g6 {[%emt 0:01:52]} 48. Rg2 {[%emt 0:
01:42]} Qf5 {[%emt 0:00:42]} 49. Qxf5 {[%emt 0:01:36]} gxf5 {[%emt 0:00:09]}
50. Rg3 {[%emt 0:00:26]} e4 {[%emt 0:00:12]} 51. fxe4 {[%emt 0:00:19]} fxe4 {
[%emt 0:00:06]} 52. Rg5 {[%emt 0:00:19]} d3 {[%emt 0:00:28]} 53. Rd5 {[%emt 0:
00:10]} e3 {[%emt 0:00:51]} 54. Rxd3 {[%emt 0:01:03]} e2 {[%emt 0:00:03]} 0-1